bitfinex/quotes_BTCUSD_20241023
["timestamp","ask_amount","ask_price","bid_price","bid_amount"]
[1729713382123,0.0769,66402.0,66390.0,0.32486218]
[1729713382658,0.1506,66401.0,66390.0,0.32486218]
[1729713383389,0.0769,66402.0,66390.0,0.32486218]
[1729713383619,0.3781,66402.0,66390.0,0.32486218]
[1729713383853,0.301204,66400.0,66388.0,0.00471122]
[1729713384131,0.301204,66400.0,66379.0,0.301298]
[1729713384132,0.17435837,66390.0,66370.0,0.153246]
[1729713384497,0.0762,66386.0,66380.0,0.2259904]
[1729713384681,0.0762,66386.0,66377.0,0.150654]
[1729713384915,0.0762,66392.0,66378.0,0.32486218]
[1729713385076,0.2259904,66389.0,66387.0,0.17435837]
[1729713385276,0.2259904,66389.0,66385.0,0.150634]
[1729713385483,0.2259904,66389.0,66383.0,0.17435837]
[1729713385661,0.3816034,66396.0,66384.0,0.15534879]
[1729713385864,0.2259904,66396.0,66387.0,0.17435837]
[1729713386087,0.2259904,66396.0,66391.0,0.17435837]
[1729713386296,0.2259904,66396.0,66388.0,0.0030125]
[1729713386297,0.2259904,66396.0,66388.0,0.150629]
[1729713386549,0.157823,66404.0,66390.0,0.301249]
[1729713386706,0.157823,66404.0,66391.0,0.30896871]
[1729713386707,0.151417,66404.0,66391.0,0.30896871]
[1729713386906,0.000823,66404.0,66392.0,0.150619]
[1729713387109,0.3765874,66403.0,66392.0,0.150619]
[1729713387280,0.3765874,66403.0,66393.0,0.00471142]
[1729713387483,0.3765874,66403.0,66394.0,0.00471142]
[1729713387702,0.2259904,66403.0,66392.0,0.15062]
[1729713387906,0.150601,66401.0,66393.0,0.00471142]
[1729713388090,0.150601,66401.0,66394.0,0.00471142]
[1729713388291,0.150601,66401.0,66395.0,0.00471142]
[1729713388546,0.150601,66401.0,66389.0,0.15050381]
[1729713388793,0.150601,66401.0,66390.0,0.16287369]
[1729713389001,0.150601,66401.0,66391.0,0.00471142]
[1729713389216,0.150601,66401.0,66392.0,0.00471142]
[1729713389434,0.150601,66401.0,66393.0,0.00471142]
[1729713389638,0.150601,66401.0,66394.0,0.00471142]
[1729713389813,0.150601,66401.0,66390.0,0.150624]
[1729713389980,0.150601,66401.0,66391.0,0.00471163]
[1729713390192,0.150601,66401.0,66392.0,0.00471163]
[1729713390386,0.301195,66402.0,66393.0,0.00471173]
[1729713390651,0.1506,66401.0,66390.0,0.150624]
[1729713390869,0.301195,66402.0,66389.0,0.15050381]
[1729713391082,0.6024,66401.0,66390.0,0.00471183]
[1729713391287,0.17435837,66395.0,66379.0,0.301299]
[1729713391462,0.17435837,66395.0,66386.0,0.150634]
[1729713391672,0.2259904,66396.0,66387.0,0.00471188]
[1729713391893,0.2259904,66396.0,66388.0,0.00471188]
[1729713392081,0.2259904,66396.0,66389.0,0.00471188]
[1729713392319,0.2259904,66396.0,66387.0,0.150631]
[1729713392530,0.2259904,66396.0,66388.0,0.00471188]
[1729713392793,0.2259904,66396.0,66389.0,0.00471188]
[1729713393014,0.2259904,66396.0,66386.0,0.15050381]
[1729713393213,0.2259904,66396.0,66387.0,0.00471188]
[1729713393389,0.2259904,66396.0,66388.0,0.00471188]
[1729713393690,0.2259904,66396.0,66386.0,0.30113681]
[1729713393691,0.2259904,66396.0,66389.0,0.00471188]
[1729713393943,0.2259904,66396.0,66386.0,0.30113681]
[1729713394164,0.2259904,66396.0,66387.0,0.00471188]
[1729713394380,0.2259904,66396.0,66388.0,0.00471188]
[1729713394626,0.2259904,66396.0,66389.0,0.00471188]
[1729713394835,0.2259904,66396.0,66386.0,0.15050381]
[1729713395036,0.2259904,66396.0,66387.0,0.00471188]
[1729713395187,0.2259904,66396.0,66388.0,0.00471188]
[1729713395388,0.150616,66394.0,66386.0,0.15050381]
[1729713395723,0.6778264,66396.0,66386.0,0.15050381]
[1729713395848,0.150616,66394.0,66387.0,0.00471188]
[1729713396066,0.6778264,66396.0,66388.0,0.00471188]
[1729713396425,0.150614,66395.0,66386.0,0.15436186]
[1729713396631,0.150614,66395.0,66387.0,0.0047119]
[1729713396831,0.3766014,66396.0,66386.0,0.15436186]
[1729713397035,0.3766014,66396.0,66387.0,0.0047119]
[1729713397187,0.3766014,66396.0,66386.0,0.30499586]
[1729713397403,0.3766014,66396.0,66387.0,0.0047119]
[1729713397610,0.3766014,66396.0,66386.0,0.30499586]
[1729713397814,0.2259904,66396.0,66387.0,0.1553429]
[1729713397995,0.2259904,66396.0,66387.0,0.150631]
[1729713398195,0.2259904,66396.0,66386.0,0.30113581]
[1729713398395,0.2259904,66396.0,66387.0,0.0047119]
[1729713398675,0.2259904,66396.0,66386.0,0.30113581]
[1729713398841,0.2259904,66396.0,66387.0,0.0047119]
[1729713399041,0.2259904,66396.0,66386.0,0.30113581]
[1729713399243,0.2259904,66396.0,66387.0,0.0047119]
[1729713399244,0.17435837,66395.0,66387.0,0.0047119]
[1729713399446,0.17435837,66395.0,66376.0,0.0829]
[1729713399447,0.17435837,66390.0,66378.0,0.301304]
[1729713399655,0.150622,66392.0,66380.0,0.150645]
[1729713399981,0.150623,66391.0,66381.0,0.00471196]
[1729713400190,0.150623,66391.0,66382.0,0.00471196]
[1729713400404,0.150623,66391.0,66383.0,0.00471196]
[1729713400555,0.301236,66393.0,66384.0,0.00471196]
[1729713400556,0.15062,66392.0,66384.0,0.00471196]
[1729713400757,0.15062,66392.0,66380.0,0.30114881]
[1729713400995,0.150614,66395.0,66381.0,0.30599899]
[1729713401203,0.301227,66395.0,66382.0,0.00471199]
[1729713401397,0.150621,66392.0,66383.0,0.00471199]
[1729713401733,0.150621,66392.0,66384.0,0.00471199]
[1729713401864,0.2259904,66396.0,66380.0,0.30114981]
[1729713401865,0.2259904,66396.0,66380.0,0.15050381]
[1729713402066,0.2259904,66396.0,66381.0,0.00471199]
[1729713402266,0.2259904,66396.0,66382.0,0.00471199]
[1729713402267,0.15062,66392.0,66382.0,0.00471199]
[1729713402473,0.2259904,66396.0,66383.0,0.00471199]
[1729713402659,0.2259904,66396.0,66381.0,0.301286]
[1729713402862,0.150616,66394.0,66383.0,0.15064]
[1729713403076,0.150616,66394.0,66382.0,0.150643]
[1729713403282,0.301229,66395.0,66383.0,0.00471198]
[1729713403539,0.150619,66393.0,66382.0,0.150642]
[1729713403746,0.301229,66395.0,66383.0,0.00471197]
[1729713403915,0.301229,66395.0,66380.0,0.15050381]
[1729713403916,0.2268134,66396.0,66381.0,0.301287]
[1729713404119,0.150617,66394.0,66383.0,0.15064]
[1729713404295,0.5280404,66396.0,66381.0,0.301287]
[1729713404500,0.150619,66393.0,66382.0,0.00471197]
[1729713404696,0.150619,66393.0,66381.0,0.45193]
[1729713404903,0.150619,66393.0,66382.0,0.00471197]
[1729713405105,0.2268134,66396.0,66381.0,0.301289]
[1729713405308,0.2259904,66395.0,66385.0,0.301269]
[1729713405540,0.2259904,66395.0,66388.0,0.150629]
[1729713405741,0.2259904,66395.0,66384.0,0.301277]
[1729713405954,0.000823,66396.0,66386.0,0.17435837]
[1729713406218,0.2259904,66395.0,66388.0,0.150629]
[1729713406394,0.2259904,66395.0,66387.0,0.301263]
[1729713406634,0.2259904,66395.0,66388.0,0.00471151]
[1729713406839,0.2259904,66395.0,66389.0,0.150627]
[1729713408344,0.2259904,66395.0,66387.0,0.30519807]
[1729713408555,0.2259904,66395.0,66386.0,0.15050381]
[1729713408978,0.2259904,66395.0,66386.0,0.30113581]
[1729713409210,0.2259904,66395.0,66386.0,0.15050381]
[1729713409426,0.2259904,66395.0,66387.0,0.0047116]
[1729713409636,0.2259904,66395.0,66388.0,0.150629]
[1729713411965,0.2259904,66395.0,66387.0,0.150631]
[1729713412977,0.2259904,66395.0,66388.0,0.00471161]
[1729713413191,0.2259904,66395.0,66387.0,0.150631]
[1729713413392,0.2259904,66395.0,66388.0,0.00471163]
[1729713413611,0.2259904,66395.0,66387.0,0.150631]
[1729713413775,0.2259904,66395.0,66388.0,0.00471163]
[1729713413971,0.2259904,66395.0,66386.0,0.1544206]
[1729713414194,0.2259904,66395.0,66387.0,0.1553427]
[1729713414396,0.2259904,66395.0,66387.0,0.150631]
[1729713414615,0.2259904,66395.0,66386.0,0.1544206]
[1729713414850,0.2259904,66395.0,66387.0,0.00471171]
[1729713414851,0.3766034,66395.0,66387.0,0.00471171]
[1729713415099,0.25175837,66392.0,66378.0,0.301304]
[1729713415334,0.0774,66392.0,66379.0,0.45651574]
[1729713415535,0.150623,66391.0,66380.0,0.15535893]
[1729713415746,0.150623,66391.0,66381.0,0.00471193]
[1729713415952,0.150623,66391.0,66382.0,0.00471193]
[1729713416159,0.22802,66392.0,66381.0,0.150643]
[1729713416388,0.0774,66392.0,66382.0,0.00471208]
[1729713416620,0.150623,66391.0,66380.0,0.30115081]
[1729713416852,0.150623,66391.0,66381.0,0.00471209]
[1729713417089,0.150623,66391.0,66382.0,0.00471209]
[1729713417330,0.150623,66391.0,66380.0,0.30115081]
[1729713417561,0.150623,66391.0,66381.0,0.0047121]
[1729713417825,0.150623,66391.0,66382.0,0.0047121]
[1729713418061,0.150623,66391.0,66380.0,0.30115081]
[1729713418548,0.150623,66391.0,66381.0,0.0047121]
[1729713418784,0.150625,66390.0,66382.0,0.0047121]
[1729713419020,0.150625,66390.0,66380.0,0.30115081]
[1729713419267,0.150625,66390.0,66381.0,0.0047121]
[1729713419507,0.150623,66391.0,66380.0,0.30115081]
[1729713419741,0.228021,66392.0,66382.0,0.150642]
[1729713419976,0.000823,66395.0,66384.0,0.301273]
[1729713420223,0.2259904,66389.0,66385.0,0.15050381]
[1729713420456,0.000823,66395.0,66385.0,0.15050381]
[1729713421428,0.150619,66393.0,66380.0,0.150646]
[1729713421716,0.151437,66395.0,66383.0,0.15064]
[1729713421999,0.2268134,66395.0,66385.0,0.17435837]
[1729713422236,0.000823,66395.0,66394.0,0.32497437]
[1729713422471,0.000823,66395.0,66394.0,0.55847818]
[1729713423213,0.000823,66404.0,66398.0,0.015]
[1729713423623,0.2259904,66428.0,66424.0,0.150547]
[1729713423816,0.2259904,66428.0,66415.0,0.301136]
[1729713423817,0.22580906,66421.0,66415.0,0.301136]
[1729713424048,0.2259904,66428.0,66421.0,0.17435837]
[1729713424366,0.2259904,66428.0,66414.0,0.005]
[1729713424367,0.2259904,66428.0,66417.0,0.32492137]
[1729713424577,0.3765304,66428.0,66415.0,0.150567]
[1729713424796,0.3765304,66428.0,66414.0,0.005]
[1729713424797,0.2259904,66428.0,66414.0,0.005]
[1729713425005,0.2259904,66428.0,66415.0,0.37649421]
[1729713425209,0.3765304,66428.0,66416.0,0.150563]
[1729713425415,0.2259904,66428.0,66417.0,0.15050381]
[1729713425559,0.3765304,66428.0,66417.0,0.15050381]
[1729713425789,0.2259904,66428.0,66417.0,0.15050381]
[1729713425970,0.15139,66429.0,66417.0,0.30106581]
[1729713426174,0.000853,66429.0,66417.0,0.15050381]
[1729713426374,0.000853,66429.0,66417.0,0.30106581]
[1729713426584,0.151391,66429.0,66418.0,0.00470931]
[1729713426787,0.150544,66426.0,66418.0,0.15521312]
[1729713427013,0.15139,66429.0,66419.0,0.00470927]
[1729713427212,0.150539,66428.0,66418.0,0.15050381]
[1729713427758,0.150539,66428.0,66413.0,0.70149177]
[1729713427759,0.000853,66429.0,66413.0,0.301143]
[1729713427992,0.000853,66429.0,66411.0,0.05699612]
[1729713427993,0.150544,66426.0,66416.0,0.150564]
[1729713428195,0.000853,66429.0,66417.0,0.150563]
[1729713428422,0.000853,66429.0,66419.0,0.150558]
[1729713428634,0.150539,66428.0,66419.0,0.150558]
[1729713428841,0.151391,66429.0,66419.0,0.150558]
[1729713429286,0.15054,66428.0,66419.0,0.150558]
[1729713429512,0.000853,66429.0,66419.0,0.150558]
[1729713429724,0.150539,66428.0,66419.0,0.150558]
[1729713429938,0.150539,66428.0,66420.0,0.150556]
[1729713430634,0.150539,66428.0,66422.0,0.17435837]
[1729713430840,0.000853,66429.0,66422.0,0.17435837]
[1729713431046,0.15139,66429.0,66422.0,0.17435837]
[1729713431255,0.150539,66428.0,66422.0,0.17435837]
[1729713431677,0.000853,66429.0,66422.0,0.17435837]
[1729713431889,0.000853,66429.0,66418.0,0.32491737]
[1729713432133,0.150542,66427.0,66418.0,0.47547837]
[1729713432338,0.150542,66427.0,66420.0,0.150556]
[1729713432541,0.000853,66429.0,66420.0,0.150556]
[1729713432773,0.150539,66428.0,66419.0,0.451677]
[1729713433005,0.150539,66428.0,66421.0,0.150553]
[1729713433446,0.150541,66427.0,66421.0,0.150553]
[1729713433867,0.000853,66429.0,66421.0,0.150553]
[1729713434098,0.000853,66429.0,66416.0,0.15050381]
[1729713434099,0.301084,66427.0,66416.0,0.150565]
[1729713434326,0.000853,66429.0,66413.0,0.17435837]
[1729713434327,0.301086,66426.0,66415.0,0.301132]
[1729713434540,0.150552,66423.0,66417.0,0.150563]
[1729713434750,0.301095,66424.0,66414.0,0.3765604]
[1729713434967,0.0761,66421.0,66414.0,0.2259904]
[1729713435181,0.0761,66421.0,66400.0,0.005]
[1729713435182,0.19735837,66415.0,66395.0,0.083]
[1729713435390,0.150586,66407.0,66406.0,0.2259904]
[1729713435623,0.150583,66409.0,66396.0,0.301222]
[1729713435828,0.150581,66409.0,66402.0,0.150597]
[1729713436042,0.150584,66408.0,66402.0,0.150597]
[1729713436249,0.150584,66408.0,66403.0,0.150594]
[1729713436448,0.150579,66410.0,66405.0,0.15059]
[1729713436675,0.150582,66409.0,66403.0,0.451784]
[1729713436887,0.150582,66409.0,66404.0,0.150593]
[1729713437305,0.023,66412.0,66401.0,0.17435837]
[1729713437687,0.005,66419.0,66406.0,0.301177]
[1729713437894,0.2259904,66416.0,66409.0,0.17435837]
[1729713438218,0.2259904,66416.0,66411.0,0.150577]
[1729713438688,0.150564,66417.0,66411.0,0.150577]
[1729713439098,0.000823,66416.0,66411.0,0.150577]
[1729713439679,0.000823,66416.0,66410.0,0.451737]
[1729713439890,0.000823,66416.0,66410.0,0.301159]
[1729713440099,0.000823,66416.0,66411.0,0.150576]
[1729713440528,0.000823,66416.0,66410.0,0.301159]
[1729713440733,0.000823,66416.0,66411.0,0.150575]
[1729713441084,0.000823,66416.0,66410.0,0.150579]
[1729713441286,0.000823,66416.0,66409.0,0.32493937]
[1729713441485,0.000823,66416.0,66410.0,0.150578]
[1729713442522,0.151389,66416.0,66410.0,0.150578]
[1729713443252,0.150568,66415.0,66408.0,0.150582]
[1729713443469,0.150568,66415.0,66403.0,0.40034877]
[1729713443673,0.451704,66415.0,66407.0,0.150584]
[1729713443880,0.150568,66415.0,66408.0,0.150582]
[1729713444228,0.150575,66412.0,66399.0,0.17435837]
[1729713444440,0.301136,66415.0,66406.0,0.150588]
[1729713444639,0.000823,66416.0,66410.0,0.150577]
[1729713444862,0.2259904,66414.0,66407.0,0.301169]
[1729713445040,0.000823,66416.0,66409.0,0.17435837]
[1729713445268,0.000823,66416.0,66409.0,0.32493937]
[1729713445481,0.15139,66416.0,66409.0,0.17435837]
[1729713445916,0.000823,66416.0,66409.0,0.17435837]
[1729713446100,0.15139,66416.0,66409.0,0.17435837]
[1729713446304,0.000823,66416.0,66409.0,0.17435837]
[1729713446516,0.150571,66414.0,66406.0,0.150587]
[1729713446724,0.000823,66416.0,66406.0,0.301177]
[1729713446942,0.000823,66416.0,66406.0,0.301175]
[1729713447142,0.000823,66416.0,66409.0,0.150581]
[1729713447360,0.151389,66416.0,66409.0,0.150581]
[1729713447571,0.000823,66416.0,66409.0,0.150581]
[1729713447684,0.000823,66416.0,66404.0,0.17435837]
[1729713448084,0.151391,66416.0,66404.0,0.17435837]
[1729713448309,0.000823,66416.0,66412.0,0.150573]
[1729713448529,0.000823,66416.0,66409.0,0.15058]
[1729713448738,0.000823,66416.0,66408.0,0.47552537]
[1729713448947,0.000823,66416.0,66407.0,0.150586]
[1729713449162,0.150569,66415.0,66407.0,0.150586]
[1729713449845,0.150571,66414.0,66407.0,0.150586]
[1729713450045,0.151389,66416.0,66407.0,0.301172]
[1729713450344,0.15057,66415.0,66409.0,0.001646]
[1729713450593,0.150568,66415.0,66409.0,0.001646]
[1729713450793,0.301955,66416.0,66409.0,0.001646]
[1729713451036,0.150568,66415.0,66409.0,0.001646]
[1729713451179,0.301136,66415.0,66409.0,0.001646]
[1729713451382,0.32493737,66410.0,66409.0,0.001646]
[1729713451583,0.58413737,66410.0,66409.0,0.001646]
[1729713452212,0.67728281,66410.0,66409.0,0.001646]
[1729713452417,0.85164118,66410.0,66409.0,0.001646]
[1729713455923,0.84464118,66410.0,66409.0,0.001646]
[1729713456677,0.83964118,66410.0,66409.0,0.001646]
[1729713457295,0.99014499,66410.0,66409.0,0.001646]
[1729713457703,0.66528281,66410.0,66409.0,0.001646]
[1729713457898,0.514779,66410.0,66409.0,0.001646]
[1729713461017,0.514779,66410.0,66409.0,0.001446]
[1729713464205,0.67028281,66410.0,66409.0,0.001446]
[1729713464334,0.67528281,66410.0,66409.0,0.001446]
[1729713464541,0.82578662,66410.0,66409.0,0.001446]
[1729713469259,0.82778662,66410.0,66409.0,0.001446]
[1729713470555,0.82578662,66410.0,66409.0,0.001446]
[1729713470771,0.67528281,66410.0,66409.0,0.001446]
[1729713471978,0.255579,66410.0,66409.0,0.001446]
[1729713472132,0.250579,66410.0,66409.0,0.001446]
[1729713472331,0.255579,66410.0,66409.0,0.001446]
[1729713472729,0.03,66411.0,66409.0,0.001446]
[1729713472932,0.150579,66410.0,66409.0,0.001446]
[1729713475781,0.2603033,66410.0,66409.0,0.001446]
[1729713476515,0.151402,66410.0,66409.0,0.001446]
[1729713479146,0.000823,66410.0,66409.0,0.001446]
[1729713479381,0.000823,66410.0,66409.0,0.310327]
[1729713479809,0.000823,66410.0,66409.0,0.159746]
[1729713480019,0.000823,66410.0,66409.0,0.310327]
[1729713480521,0.000823,66410.0,66409.0,0.391227]
[1729713480890,0.000823,66410.0,66409.0,0.39593682]
[1729713481303,0.000823,66410.0,66409.0,0.391227]
[1729713484900,0.000823,66410.0,66409.0,0.54644041]
[1729713486780,0.000823,66410.0,66409.0,0.54643981]
[1729713487028,0.000823,66410.0,66409.0,0.55143981]
[1729713487449,0.000823,66410.0,66409.0,0.65673081]
[1729713487656,0.000823,66410.0,66409.0,0.66143981]
[1729713487939,0.000823,66416.0,66414.0,0.005]
[1729713488145,0.000823,66416.0,66415.0,0.71265]
[1729713488352,0.000823,66416.0,66415.0,0.89153195]
[1729713488578,0.000823,66416.0,66415.0,0.88399755]
[1729713488785,0.000823,66416.0,66415.0,0.88899755]
[1729713489906,0.000823,66416.0,66415.0,1.00653084]
[1729713491010,0.000823,66416.0,66415.0,1.00853084]
[1729713491464,0.000823,66416.0,66415.0,1.01249344]
[1729713491669,0.000823,66423.0,66415.0,1.01249344]
[1729713491670,0.000823,66423.0,66422.0,0.007]
[1729713491881,0.000823,66423.0,66422.0,0.30906626]
[1729713492092,0.000823,66423.0,66422.0,0.31076481]
[1729713492322,0.000823,66423.0,66422.0,0.49116481]
[1729713492550,0.000823,66423.0,66422.0,0.48645581]
[1729713493693,0.000823,66423.0,66422.0,0.49116372]
[1729713493899,0.000823,66423.0,66422.0,0.49116375]
[1729713494347,0.000823,66423.0,66422.0,0.48645581]
[1729713494546,0.000823,66423.0,66422.0,0.49116361]
[1729713494750,0.000823,66423.0,66422.0,0.49116368]
[1729713495431,0.000823,66423.0,66422.0,0.48645581]
[1729713495706,0.000823,66423.0,66422.0,0.49116373]
[1729713498603,0.000823,66423.0,66422.0,0.55135973]
[1729713498778,0.000823,66423.0,66422.0,0.54665181]
[1729713498978,0.000823,66423.0,66422.0,0.55522472]
[1729713500444,0.000853,66429.0,66428.0,0.150538]
[1729713500698,0.000853,66442.0,66429.0,0.1847]
[1729713500877,0.000853,66442.0,66431.0,0.49924874]
[1729713501078,0.000853,66442.0,66431.0,0.66199286]
[1729713501276,0.000853,66442.0,66431.0,0.65446043]
[1729713501484,0.000853,66442.0,66431.0,0.75946043]
[1729713501629,0.000853,66442.0,66431.0,0.83397183]
[1729713501829,0.000853,66442.0,66431.0,0.77699164]
[1729713502066,0.2268434,66438.0,66435.0,0.255523]
[1729713502260,0.2268434,66438.0,66435.0,0.75775355]
[1729713502463,0.2268434,66438.0,66435.0,0.90625143]
[1729713502708,0.000853,66438.0,66435.0,0.90625143]
[1729713502916,0.000853,66438.0,66435.0,0.90154355]
[1729713503115,0.000853,66438.0,66437.0,0.005]
[1729713503348,0.000853,66442.0,66441.0,0.255509]
[1729713503483,0.000853,66442.0,66441.0,0.58037118]
[1729713503707,0.000853,66442.0,66441.0,0.59507795]
[1729713504111,0.000853,66442.0,66441.0,0.60260822]
[1729713504364,0.000853,66442.0,66441.0,0.59507795]
[1729713504714,0.000853,66442.0,66441.0,0.59007795]
[1729713505069,0.000853,66442.0,66441.0,0.59507795]
[1729713505272,0.000853,66442.0,66441.0,0.59007795]
[1729713505463,0.000853,66442.0,66441.0,0.59507795]
[1729713506854,0.000853,66442.0,66441.0,0.59507791]
[1729713507262,0.000853,66442.0,66441.0,0.60260868]
[1729713508673,0.000853,66442.0,66441.0,0.59760868]
[1729713508872,0.000853,66442.0,66441.0,0.30571954]
[1729713509703,0.000853,66442.0,66441.0,0.30101281]
[1729713510110,0.000853,66442.0,66441.0,0.30572006]
[1729713510311,0.000853,66442.0,66441.0,0.30101281]
[1729713510563,0.000853,66442.0,66441.0,0.30572012]
[1729713510809,0.000853,66442.0,66435.0,0.01395597]
[1729713510810,0.000853,66442.0,66435.0,0.00395597]
[1729713510992,0.000853,66442.0,66441.0,0.150509]
[1729713511166,0.000853,66442.0,66439.0,0.150513]
[1729713511366,0.000853,66442.0,66440.0,0.15051]
[1729713511926,0.000853,66442.0,66441.0,0.150509]
[1729713513314,0.000853,66442.0,66441.0,0.15521645]
[1729713513493,0.000853,66442.0,66441.0,0.30873022]
[1729713513703,0.000853,66442.0,66441.0,0.31325153]
[1729713514792,0.000853,66442.0,66441.0,0.32221777]
[1729713515269,0.000853,66442.0,66441.0,0.31721777]
[1729713516107,0.000853,66442.0,66441.0,0.31325153]
[1729713517797,0.000853,66442.0,66441.0,0.30101281]
[1729713518897,0.000853,66442.0,66441.0,0.31325072]
[1729713519794,0.000853,66442.0,66441.0,0.31325132]
[1729713522127,0.000853,66442.0,66441.0,0.31825132]
[1729713526468,0.000853,66442.0,66441.0,0.31325132]
[1729713526824,0.000853,66442.0,66441.0,0.31825132]
[1729713527514,0.000853,66442.0,66441.0,0.31825088]
[1729713527876,0.00112803,66442.0,66441.0,0.31825088]
[1729713528301,0.00112803,66442.0,66441.0,0.31325088]
[1729713528932,0.00112803,66442.0,66441.0,0.30101281]
[1729713529909,0.00112803,66442.0,66441.0,0.31325093]
[1729713531365,0.00112803,66442.0,66441.0,0.30101281]
[1729713531567,0.00112803,66442.0,66441.0,0.31325083]
[1729713534445,0.00112803,66442.0,66441.0,0.53924123]
[1729713534597,0.00112803,66442.0,66441.0,0.31325083]
[1729713535397,0.00112803,66442.0,66441.0,0.40801281]
[1729713535610,0.00112803,66442.0,66441.0,0.4202493]
[1729713536038,0.000825,66449.0,66446.0,0.005]
[1729713536237,0.000825,66449.0,66448.0,0.32485137]
[1729713536458,0.000825,66449.0,66448.0,0.48759167]
[1729713536862,0.000825,66449.0,66448.0,0.49259167]
[1729713538893,0.000825,66449.0,66448.0,0.66695004]
[1729713539070,0.000825,66449.0,66448.0,0.49259167]
[1729713540743,0.000825,66449.0,66448.0,0.48759167]
[1729713540950,0.000825,66449.0,66448.0,0.48006152]
[1729713542513,0.000825,66449.0,66448.0,0.48759167]
[1729713542716,0.000825,66449.0,66448.0,0.48006152]
[1729713542717,0.001155,66449.0,66448.0,0.48006152]
[1729713543322,0.001155,66449.0,66448.0,0.48759167]
[1729713543541,0.001155,66449.0,66448.0,0.48006152]
[1729713544374,0.001155,66449.0,66448.0,0.00470634]
[1729713544584,0.001155,66449.0,66446.0,0.300993]
[1729713544786,0.001155,66449.0,66444.0,0.301003]
[1729713544787,0.001155,66449.0,66444.0,0.02]
[1729713545071,0.1505,66445.0,66444.0,0.02]
[1729713545299,0.32900381,66445.0,66444.0,0.02]
[1729713545504,0.50336218,66445.0,66444.0,0.02]
[1729713545914,0.61536218,66445.0,66444.0,0.02]
[1729713546129,0.190514,66439.0,66438.0,0.001646]
[1729713546381,0.190514,66439.0,66420.0,0.2259904]
[1729713546382,0.150554,66421.0,66420.0,0.2259904]
[1729713546600,0.288563,66417.0,66406.0,0.001646]
[1729713546805,0.43906681,66417.0,66406.0,0.001646]
[1729713547233,0.278563,66417.0,66406.0,0.001646]
[1729713547480,0.355063,66417.0,66409.0,0.001446]
[1729713547685,0.64440721,66417.0,66409.0,0.001446]
[1729713547885,0.266579,66410.0,66409.0,0.001446]
[1729713548086,0.69144118,66410.0,66409.0,0.001446]
[1729713548394,0.51708281,66410.0,66409.0,0.001446]
[1729713550804,0.288586,66407.0,66406.0,0.001646]
[1729713551037,0.84495199,66407.0,66406.0,0.001646]
[1729713551258,0.257586,66407.0,66406.0,0.001646]
[1729713552055,0.084,66407.0,66406.0,0.001646]
[1729713552265,0.234586,66407.0,66406.0,0.001646]
[1729713552707,0.079,66407.0,66406.0,0.001646]
[1729713553773,0.267601,66407.0,66406.0,0.001646]
[1729713554010,0.290601,66407.0,66406.0,0.001646]
[1729713554642,0.44810481,66407.0,66406.0,0.001646]
[1729713554856,0.73046318,66407.0,66406.0,0.001646]
[1729713555106,0.73046318,66407.0,66384.0,0.2259904]
[1729713555107,0.17435837,66389.0,66384.0,0.2259904]
[1729713555340,0.150636,66385.0,66384.0,0.2259904]
[1729713555548,0.0771,66385.0,66378.0,0.2259904]
[1729713555761,0.150652,66378.0,66373.0,0.05702217]
[1729713555980,0.15066,66375.0,66373.0,0.05702217]
[1729713556200,0.150657,66376.0,66373.0,0.05702217]
[1729713556654,0.2259904,66378.0,66371.0,0.001646]
[1729713556860,0.150665,66372.0,66371.0,0.001646]
[1729713557068,0.150662,66374.0,66371.0,0.001646]
[1729713557275,0.150665,66372.0,66371.0,0.001646]
[1729713557496,0.249665,66372.0,66371.0,0.001646]
[1729713557745,0.41716881,66372.0,66371.0,0.001646]
[1729713557986,0.65918427,66372.0,66371.0,0.001646]
[1729713558194,0.65718427,66372.0,66371.0,0.001646]
[1729713558627,0.65918427,66372.0,66371.0,0.001646]
[1729713559297,0.65718427,66372.0,66371.0,0.001646]
[1729713559537,0.65918427,66372.0,66371.0,0.001646]
[1729713559964,0.65718427,66372.0,66371.0,0.001646]
[1729713560730,0.65918427,66372.0,66371.0,0.001646]
[1729713561482,0.51516881,66372.0,66371.0,0.001646]
[1729713561732,0.226665,66372.0,66371.0,0.001646]
[1729713562446,0.64731739,66372.0,66371.0,0.001646]
[1729713562938,0.076,66372.0,66371.0,0.001646]
[1729713563235,0.150665,66372.0,66371.0,0.001646]
[1729713563493,0.03,66373.0,66372.0,0.150665]
[1729713563741,0.150649,66380.0,66371.0,0.001646]
[1729713563982,0.2259904,66381.0,66371.0,0.001646]
[1729713563983,0.2259904,66381.0,66374.0,0.15066]
[1729713564282,0.2259904,66381.0,66371.0,0.001646]
[1729713564283,0.301295,66380.0,66371.0,0.001646]
[1729713564476,0.301322,66374.0,66371.0,0.001646]
[1729713564711,0.150657,66376.0,66371.0,0.001646]
[1729713564937,0.150665,66372.0,66371.0,0.001646]
[1729713565359,0.3243,66379.0,66371.0,0.001646]
[1729713565605,0.150657,66376.0,66371.0,0.001646]
[1729713566032,0.26514858,66392.0,66371.0,0.15214981]
[1729713566242,0.2259904,66381.0,66374.0,0.301322]
[1729713566447,0.2259904,66381.0,66371.0,0.15214981]
[1729713566448,0.150655,66377.0,66371.0,0.001646]
[1729713566877,0.150652,66378.0,66371.0,0.001646]
[1729713567079,0.301313,66376.0,66371.0,0.001646]
[1729713567285,0.341287,66382.0,66371.0,0.001646]
[1729713567286,0.301318,66375.0,66371.0,0.001646]
[1729713567495,0.150663,66373.0,66371.0,0.001646]
[1729713567907,0.2259904,66374.0,66371.0,0.001646]
[1729713568126,0.173665,66372.0,66371.0,0.001646]
[1729713568760,0.88886325,66372.0,66371.0,0.001646]
[1729713569406,0.88886325,66372.0,66368.0,0.001704]
[1729713569407,0.167672,66369.0,66368.0,0.001704]
[1729713569612,0.44117581,66369.0,66368.0,0.001704]
[1729713570058,0.47786283,66369.0,66368.0,0.001704]
[1729713570497,0.44117581,66369.0,66368.0,0.001704]
[1729713570860,0.59167962,66369.0,66368.0,0.001704]
[1729713571272,0.71797962,66369.0,66368.0,0.001704]
[1729713571881,0.71097962,66369.0,66368.0,0.001704]
[1729713572112,0.56547581,66369.0,66368.0,0.001704]